lending/lending_fUSD_20250819
["ID","MTS","AMOUNT","RATE_DAILY","PERIOD"]
[380214018,1755613837709,-125740.6654305,0.00010963,2]
[380214020,1755613837722,-99116.5792983,0.00010963,2]
[380214021,1755613837731,-2966.26716,0.00010963,2]
[380214023,1755613837740,-150.0,0.00010963,2]
[380214026,1755613837751,-8827.3722226,0.00010963,2]
[380214028,1755613837760,-500.0,0.00010973,2]
[380214029,1755613837769,-500.0,0.00010973,2]
[380214031,1755613837779,-500.0,0.00010973,2]
[380214033,1755613837788,-500.0,0.00010973,2]
[380214035,1755613837797,-500.0,0.00010973,2]
[380214037,1755613837806,-7842.0,0.00010986,2]
[380214039,1755613837816,-14222.0,0.00010986,2]
[380214041,1755613837825,-450.0,0.0001099,2]
[380214043,1755613837835,-5833.1931042,0.00010992,2]
[380214045,1755613837844,-365.587573,0.00010992,2]
[380214047,1755613837853,-268.43584565,0.00010992,2]
[380214050,1755613837862,-2568.39878048,0.00010993,2]
[380214052,1755613837872,-4000.0,0.00010999,2]
[380214054,1755613837881,-202.66,0.00011,2]
[380214056,1755613837890,-837768.11026075,0.00011,2]
[380214058,1755613837899,-376336.1,0.00011,2]
[380214059,1755613837909,-250000.0,0.00011,2]
[380214078,1755613838232,-201.95,0.00011,2]
[380214083,1755613838266,-200.54,0.00011,2]
[380214085,1755613838275,-201.35,0.00011,2]
[380214087,1755613838285,-203.84,0.00011,2]
[380214089,1755613838295,-202.44,0.00011,2]
[380214091,1755613838305,-202.86,0.00011,2]
[380214093,1755613838315,-200.27,0.00011,2]
[380214095,1755613838326,-202.83,0.00011,2]
[380214097,1755613838337,-200.1,0.00011,2]
[380214099,1755613838347,-203.92,0.00011,2]
[380214101,1755613838357,-201.85,0.00011,2]
[380214103,1755613838367,-203.58,0.00011,2]
[380214104,1755613838378,-151.0,0.00011,2]
[380214107,1755613838388,-635.09971842,0.00011,2]
[380214109,1755613838397,-201.89,0.00011,2]
[380214111,1755613838406,-202.54,0.00011,2]
[380214112,1755613838418,-23832.82,0.00011,2]
[380214115,1755613838428,-187.92310273,0.00011,2]
[380214116,1755613838438,-214.07174483,0.00011,2]
[380214118,1755613838447,-1267043.61131818,0.00011,2]
[380214120,1755613838456,-7967721.60310332,0.00011,2]
[380214123,1755613838472,-784.790448,0.00011,2]
[380214127,1755613838508,-2397.02077318,0.00011,2]
[380214130,1755613838519,-3341.82571007,0.00011,2]
[380214132,1755613838530,-956.59964052,0.00011,2]
[380214134,1755613838541,-10600.7902,0.00011,2]
[380214136,1755613838552,-856.94292681,0.00011,2]
[380214142,1755613838643,-544.01757412,0.00011,2]
[380214143,1755613838655,-2924.06158884,0.00011,2]
[380214242,1755613839659,-893.04,0.00010962,2]
[380214244,1755613839669,-56616.96,0.00011,2]
[380214246,1755613839680,-2031.04555728,0.00011,2]
[380214273,1755613839926,-36646.92571685,0.00011,2]
[380214275,1755613839938,-57467.03789645,0.00011,2]
[380214281,1755613839987,-11485.0,0.00011,2]
[380214283,1755613839999,-13828.7225771,0.00011,2]
[380214285,1755613840012,-1107.87198251,0.00011,2]
[380214669,1755613843128,-365.48659263,0.00010952,2]
[380214671,1755613843137,-770.80924919,0.00011,2]
[380214676,1755613843169,-5925.9072,0.00011,2]
[380214699,1755613843394,-199.55709384,0.00010019,2]
[380214702,1755613843404,-144.55268953,0.00011,2]
[380214705,1755613843421,-85852.50000001,0.00011,2]
[380214708,1755613843438,-630554.66500012,0.00011,2]
[380215022,1755613846864,-160.0,0.0001078,2]
[380215024,1755613846874,-473.6173178,0.00011,2]
[380215026,1755613846885,-2783.2,0.00011,2]
[380215029,1755613846896,-508.1826822,0.00011,2]
[380215044,1755613847050,-2671.06529817,0.00011,2]
[380215046,1755613847061,-2386.7540112,0.00011,2]
[380215052,1755613847107,-1054.7,0.00010998,2]
[380219257,1755614078287,155.35,9.315e-05,2]
[380219260,1755614339395,280.0,7.9e-05,2]
[380219261,1755614339661,275.0,9.08e-05,2]
[380219294,1755614648229,13308.55,7.945e-05,2]
[380219295,1755614648251,3560.02183,7.945e-05,2]
[380220494,1755614870897,278.0,6.9e-05,2]
[380220495,1755614871625,273.0,8.08e-05,2]
[380220496,1755614871846,267.0,9.27e-05,2]
[380220497,1755614876035,10621.97817,9.466e-05,2]
[380220498,1755614876055,325.060226,9.466e-05,2]
[380220500,1755614957784,1355.218652,9.464e-05,2]
[380220502,1755614977300,1614.12,9.478e-05,2]
[380220503,1755614999242,150.0,0.000221,120]
[380220504,1755615000246,150.0,0.000221,120]
[380220510,1755615022389,250.0,9.481e-05,2]
[380220533,1755615032653,-532.28292593,9.512e-05,2]
[380220534,1755615032662,-226.7670488,9.512e-05,2]
[380220535,1755615032671,-231.84814267,9.512e-05,2]
[380220536,1755615032680,-500.0,9.512e-05,2]
[380220537,1755615032689,-3006.79,9.513e-05,2]
[380220538,1755615032698,-226.23881451,9.515e-05,2]
[380220539,1755615032712,-1200.0,9.526e-05,2]
[380220540,1755615032723,-300.0,9.526e-05,2]
[380220541,1755615032733,-683.01450761,9.527e-05,2]
[380220542,1755615032744,-1816.98549239,9.527e-05,2]
[380220543,1755615032753,-300.0,9.527e-05,2]
[380220544,1755615032763,-500.0,9.539e-05,2]
[380220545,1755615032773,-2500.0,9.558e-05,2]
[380220546,1755615032782,-300.0,9.558e-05,2]
[380220547,1755615032793,-425.22,9.564e-05,2]
[380220548,1755615032803,-500.0,9.61e-05,2]
[380220549,1755615032814,-2000.0,9.641e-05,2]
[380220550,1755615032827,-1000.0,9.768e-05,2]
[380220551,1755615032837,-170.0,9.836e-05,7]
[380220552,1755615032846,-200.0,9.854e-05,2]
[380220553,1755615032855,-294.32988087,9.888e-05,2]
[380220554,1755615032865,-150.0,9.888e-05,2]
[380220555,1755615032874,-150.0,9.888e-05,2]
[380220556,1755615032884,-150.0,9.888e-05,2]
[380220557,1755615032893,-150.0,9.888e-05,2]
[380220558,1755615032902,-150.0,9.888e-05,2]
[380220559,1755615032912,-150.0,9.888e-05,2]
[380220560,1755615032922,-150.0,9.888e-05,2]
[380220561,1755615032932,-150.0,9.888e-05,2]
[380220562,1755615032941,-150.0,9.888e-05,2]
[380220563,1755615032950,-150.0,9.888e-05,2]
[380220564,1755615032964,-536.83198328,9.924e-05,2]
[380220565,1755615032973,-165.21,9.936e-05,2]
[380220566,1755615032983,-150.0,9.999e-05,2]
[380220567,1755615032992,-300.0,0.0001,2]
[380220568,1755615033001,-2188.42264345,0.0001,2]
[380220569,1755615033013,-8076.57735655,0.0001,2]
[380220570,1755615033023,-500.0,0.0001,2]
[380220571,1755615033033,-480.0,0.00010012,2]
[380220572,1755615033042,-229.11072785,0.00010017,2]
[380220573,1755615033052,-2171.1799156,0.00010044,2]
[380220574,1755615033064,-957.58122771,0.00010044,2]
[380220575,1755615033074,-1100.0,0.00010062,2]
[380220576,1755615033084,-250.0,0.00010089,2]
[380220577,1755615033094,-562.14194317,0.0001009,2]
[380220578,1755615033104,-171.21,0.00010105,2]
[380220579,1755615033114,-283.45548478,0.000102,3]
[380220580,1755615033167,-216.54451522,0.000102,3]
[380220581,1755615033177,-1000.0,0.000103,3]
[380220582,1755615033187,-219.52114661,0.0001038,2]
[380220583,1755615033197,-4788.11638039,0.000104,3]
[380220585,1755615036248,-1451.34628555,9.512e-05,2]
[380220586,1755615036260,-364.74788412,9.512e-05,2]
[380220587,1755615036270,-1500.0,0.000104,3]
[380220588,1755615036280,-150.0,0.00010437,2]
[380220589,1755615036289,-150.0,0.00010437,2]
[380220590,1755615036299,-150.0,0.00010437,2]
[380220591,1755615036310,-159.58158746,0.0001045,2]
[380220592,1755615036320,-262.0,0.0001045,2]
[380220593,1755615036329,-300.0,0.00010463,2]
[380220594,1755615036339,-500.0,0.00010463,2]
[380220595,1755615036348,-2500.0,0.00010463,2]
[380220596,1755615036357,-500.0,0.00010466,2]
[380220597,1755615036367,-2500.0,0.00010466,2]
[380220598,1755615036376,-300.0,0.00010466,2]
[380220599,1755615036386,-250.0,0.00010466,2]
[380220600,1755615036396,-1252.0,0.00010479,2]
[380220601,1755615036405,-600.6239692,0.00010479,2]
[380220602,1755615036415,-2100.0,0.000105,3]
[380220604,1755615036425,-2000.0,0.0001052,2]
[380220606,1755615036435,-2095.64294604,0.00010589,2]
[380220608,1755615036447,-2600.0,0.000106,3]
[380220610,1755615036459,-170.2,0.00010626,2]
[380220612,1755615036470,-500.0,0.000107,3]
[380220614,1755615036480,-425.22,0.00010759,2]
[380220617,1755615036491,-212.02104404,0.0001077,2]
[380220620,1755615036501,-2080.24584803,0.0001078,2]
[380220623,1755615036511,-500.0,0.000108,3]
[380220626,1755615036520,-1000.0,0.00010873,2]
[380220629,1755615036530,-218.0,0.0001088,2]
[380220632,1755615036541,-843.87140665,0.00010883,2]
[380220634,1755615036551,-589.55967384,0.00010899,2]
[380220637,1755615036564,-458.43483364,0.00010899,2]
[380220639,1755615036574,-1000.0,0.000109,2]
[380220641,1755615036585,-246.55968647,0.000109,2]
[380220642,1755615036594,-5000.0,0.000109,2]
[380220645,1755615036604,-500.0,0.000109,3]
[380220647,1755615036613,-436.09255722,0.000109,2]
[380220649,1755615036622,-150.16551865,0.000109,2]
[380220651,1755615036632,-426.25866835,0.000109,2]
[380220653,1755615036642,-980.11472783,0.000109,2]
[380220655,1755615036651,-980.11472773,0.000109,2]
[380220656,1755615036660,-150.0,0.00010959,2]
[380220658,1755615036670,-657.8,0.00010959,2]
[380220659,1755615036679,-7398.8749804,0.00010963,2]
[380220660,1755615036689,-217.94026462,0.00010963,2]
[380220661,1755615036698,-500.0,0.00010963,2]
[380220662,1755615036710,-150.0,0.00010963,2]
[380220663,1755615036724,-500.0,0.00010963,2]
[380220664,1755615036733,-429.0,0.00010963,2]
[380220665,1755615036743,-150.0,0.00010963,2]
[380220666,1755615036752,-1234.0,0.00010963,2]
[380220667,1755615036762,-150.0,0.00010963,2]
[380220668,1755615036772,-673.0,0.00010963,2]
[380220669,1755615036782,-500.0,0.00010963,2]
[380220670,1755615036793,-200.0,0.00010963,2]
[380220671,1755615036802,-201.61919233,0.00010963,2]
[380220672,1755615036812,-300.0,0.00010963,2]
[380220673,1755615036821,-150.0,0.00010963,2]
[380220674,1755615036831,-150.0,0.00010963,2]
[380220675,1755615036840,-150.0,0.00010963,2]
[380220676,1755615036849,-526.0,0.00010963,2]
[380220677,1755615036859,-500.0,0.00010963,2]
[380220678,1755615036868,-150.0,0.00010986,2]
[380220679,1755615036878,-150.0,0.00010986,2]
[380220680,1755615036887,-184.26180278,0.00010986,2]
[380220681,1755615036897,-150.0,0.00010986,2]
[380220682,1755615036907,-150.0,0.00010986,2]
[380220683,1755615036916,-150.0,0.00010986,2]
[380220684,1755615036926,-150.0,0.00010986,2]
[380220685,1755615036935,-1000.0,0.00010989,2]
[380220686,1755615036945,-1388.16147352,0.0001099,2]
[380220687,1755615036961,-371.83852648,0.0001099,2]
[380220688,1755615036970,-455.89727717,0.0001099,4]
[380220689,1755615037002,-2834.10272283,0.0001099,4]
[380220690,1755615037011,-218.46799208,0.0001099,2]
[380220691,1755615037021,-218.46799208,0.0001099,2]
[380220692,1755615037031,-218.46799208,0.0001099,2]
[380220693,1755615037040,-3433.0364122,0.00010992,2]
[380220694,1755615037050,-774.655695,0.00010992,2]
[380220695,1755615037059,-892.94,0.00010997,2]
[380220696,1755615037069,-2833.38119373,0.00010998,2]
[380220697,1755615037080,-3050.26086373,0.00010998,2]
[380220698,1755615037091,-561.66794254,0.00010998,2]
[380220699,1755615037101,-72546.37402511,0.00010998,2]
[380220700,1755615037239,-284.23252147,0.00010998,2]
[380220701,1755615037252,-4200.0,0.00010998,2]
[380220702,1755615037312,-5723.36153582,0.00010998,2]
[380220703,1755615037325,-412.64213996,0.00010998,2]
[380220704,1755615037336,-670.45874351,0.00010998,2]
[380220719,1755615038012,-175.99336758,0.000109,2]
[380220720,1755615038022,-1190.50663243,0.00010998,2]
[380220721,1755615038127,-2519.61499444,0.00010998,2]
[380220722,1755615038238,-128629.34224726,0.00010998,2]
[380220723,1755615038248,-255.0,0.00010999,2]
[380220724,1755615038259,-2340.0,0.00011,2]
[380220725,1755615038268,-614258.80690384,0.00011,2]
[380220726,1755615038278,-1195.03530645,0.00011,2]
[380220728,1755615038287,-301.9,0.00011,2]
[380220730,1755615038297,-300.0,0.00011,2]
[380220732,1755615038306,-2455321.1703098,0.00011,2]
[380220733,1755615038316,-7397455.54638555,0.00011,2]
[380220734,1755615038327,-1969.5695428,0.00011,2]
[380220735,1755615038339,-6091.13991126,0.00011,2]
[380220747,1755615040923,-980.11472773,0.000109,2]
[380220748,1755615040932,-70823.39634957,0.00011,2]
[380220749,1755615041145,-2089.4,0.00011,2]
[380220750,1755615041156,-1143.414,0.00011,2]
[380220751,1755615041168,-10217.2914491,0.00011,2]
[380220752,1755615041179,-3424.5,0.00011,2]
[380220753,1755615041224,-290521.70728585,0.00011,2]
[380220754,1755615041347,-5742.1592621,0.00011,2]
[380220755,1755615041378,-1146.2126242,0.00011,2]
[380220756,1755615041390,-30241.16882341,0.00011,2]
[380220757,1755615041401,-1092.017,0.00011,2]
[380220833,1755615043479,-175.99336755,0.000109,2]
[380220835,1755615043489,-1294.4923142,0.00010992,2]
[380220837,1755615043499,-3674.91674433,0.00011,2]
[380220841,1755615043538,-1792.00017971,0.00011,2]
[380220843,1755615043550,-386.81122399,0.00011,2]
[380220846,1755615043562,-85694.99999999,0.00011,2]
[380220847,1755615043578,-1618.75368924,0.00011,2]
[380220848,1755615043606,-5821.59382798,0.00011,2]
[380220849,1755615043617,-296.13443335,0.00011,2]
[380220850,1755615043680,-4587.156,0.00011,2]
[380220851,1755615043757,-1044.04224972,0.00011,2]
[380220860,1755615046163,-742.7726411,0.000109,2]
[380220861,1755615046176,-237.34208663,0.000109,2]
[380220862,1755615046185,-367985.24631951,0.00011,2]
[380220863,1755615046230,-742.08553765,0.00011,2]
[380220864,1755615046300,-22860.0,0.00011,2]
[380220865,1755615046311,-4193.0,0.00011,2]
[380222127,1755615083505,500.0,0.00021917,120]
[380222128,1755615083789,500.0,0.00021917,120]
[380222129,1755615084127,600.0,0.00021917,120]
[380222131,1755615122429,150.0,0.000221,120]
[380222132,1755615125486,150.0,0.000221,120]
[380222133,1755615164728,500.0,9.412e-05,2]
[380222135,1755615204658,267.48852931,0.0001286,11]
[380222145,1755615405076,284.0,7.8e-05,2]
[380222146,1755615405511,278.0,8.98e-05,2]
[380222148,1755615416815,472.0,0.000157,60]
[380222150,1755615429654,473.0,0.000147,30]
[380222151,1755615440735,174.57,9.307e-05,2]
[380222165,1755615643182,7004.84,9.285e-05,2]
[380222168,1755615815897,3214.191122,9.238e-05,2]
[380222169,1755615815919,15000.0,9.238e-05,2]
[380222170,1755615815944,15000.0,9.238e-05,2]
[380222171,1755615815967,15000.0,9.238e-05,2]
[380222172,1755615815988,15000.0,9.238e-05,2]
[380222173,1755615816010,4357.108878,9.238e-05,2]
[380222176,1755615902121,-526.09625021,9.528e-05,2]
[380222177,1755615902154,-252.46255877,9.528e-05,2]
[380222178,1755615902187,-150.0,9.529e-05,2]
[380222179,1755615902221,-300.0,9.55e-05,2]
[380222180,1755615902258,-300.0,9.55e-05,2]
[380222181,1755615902293,-150.0,9.586e-05,2]
[380222182,1755615902330,-469.81153345,9.592e-05,2]
[380222183,1755615902364,-220.49226034,9.592e-05,2]
[380222184,1755615902401,-158.73693416,9.592e-05,2]
[380222185,1755615902433,-749.0,9.592e-05,2]
[380222186,1755615902469,-165.33261722,9.592e-05,2]
[380222187,1755615902503,-2000.0,9.593e-05,2]
[380222188,1755615902937,522.17,9.259e-05,2]
[380222189,1755615939490,294.0,6.8e-05,2]
[380222190,1755615939826,289.0,7.98e-05,2]
[380222191,1755615940221,283.0,9.17e-05,2]
[380222193,1755615967515,807.06,9.299e-05,2]
[380222194,1755615969628,1500.0,9.299e-05,2]
[380222196,1755616013355,1000.0,9.28e-05,2]
[380222197,1755616024734,647.63,9.277e-05,2]
[380222198,1755616037986,-178.0,9.591e-05,2]
[380222199,1755616038023,-2000.0,9.591e-05,2]
[380222200,1755616038063,-1200.0,9.592e-05,2]
[380222201,1755616038104,-218.58,9.678e-05,2]
[380222202,1755616038141,-218.58,9.683e-05,2]
[380222203,1755616038178,-151.1,9.688e-05,2]
[380222204,1755616047120,1300.0,0.00021,90]
[380222208,1755616080250,-67.48,9.688e-05,2]
[380222209,1755616080289,-218.58,9.693e-05,2]
[380222210,1755616080326,-218.58,9.698e-05,2]
[380222211,1755616080368,-328.86807341,9.699e-05,2]
[380222212,1755616080405,-154.34458224,9.699e-05,2]
[380222213,1755616080442,-13.71258746,9.7e-05,2]
[380222214,1755616080557,-996.86951378,9.7e-05,2]
[380222215,1755616082474,1738.75,9.341e-05,2]
[380222216,1755616101220,250.0,9.394e-05,2]
[380222217,1755616117243,1839.45,9.374e-05,2]
[380222218,1755616117311,1215.34,9.374e-05,2]
[380222220,1755616200757,256.491122,9.385e-05,2]
[380222221,1755616200782,524.828878,9.385e-05,2]
[380222222,1755616208519,4066.43,9.337e-05,2]
[380222237,1755616232194,-300.0,9.522e-05,2]
[380222238,1755616232203,-159.2758272,9.69e-05,2]
[380222239,1755616232213,-2500.0,9.69e-05,2]
[380222240,1755616232222,-300.0,9.69e-05,2]
[380222241,1755616232233,-230.20765139,9.695e-05,2]
[380222242,1755616232242,-1200.0,9.695e-05,2]
[380222243,1755616232252,-2500.0,9.696e-05,2]
[380222244,1755616232262,-218.58,9.703e-05,2]
[380222245,1755616232271,-218.58,9.708e-05,2]
[380222246,1755616232280,-218.58,9.713e-05,2]
[380222247,1755616232290,-218.58,9.718e-05,2]
[380222248,1755616232300,-218.58,9.724e-05,2]
[380222249,1755616232309,-300.0,9.725e-05,2]
[380222250,1755616232318,-3780.75,9.726e-05,2]
[380222251,1755616232328,-218.58,9.729e-05,2]
[380222252,1755616232337,-914.05134118,9.731e-05,2]
[380222253,1755616232347,-218.58,9.734e-05,2]
[380222254,1755616232356,-218.58,9.739e-05,2]
[380222255,1755616232365,-218.58,9.744e-05,2]
[380222256,1755616232374,-218.58,9.749e-05,2]
[380222257,1755616232384,-1459.15,9.75e-05,2]
[380222258,1755616232393,-415.27152995,9.751e-05,2]
[380222259,1755616232402,-218.58,9.754e-05,2]
[380222260,1755616232411,-218.58,9.759e-05,2]
[380222261,1755616232421,-218.58,9.764e-05,2]
[380222262,1755616232430,-550.92413433,9.766e-05,2]
[380222263,1755616232440,-150.0,9.769e-05,2]
[380222264,1755616232449,-218.58,9.769e-05,2]
[380222265,1755616232458,-2000.0,9.771e-05,2]
[380222266,1755616232467,-218.58,9.775e-05,2]
[380222267,1755616232476,-265.90486612,9.776e-05,2]
[380222268,1755616232509,-122.09513388,9.776e-05,2]
[380222269,1755616232519,-170.0,9.836e-05,7]
[380222270,1755616232528,-100.56633115,9.98e-05,2]
[380222271,1755616232569,-99.43366885,9.98e-05,2]
[380222272,1755616232578,-1327.15,9.98e-05,2]
[380222273,1755616232589,-604.18289642,0.0001,2]
[380222274,1755616232599,-202.46329792,0.0001,2]
[380222275,1755616232608,-56.05713681,0.0001,2]
[380222276,1755616236206,-94.94286319,0.0001,2]
[380222277,1755616236216,-151.0,0.0001,2]
[380222278,1755616236226,-151.0,0.0001,2]
[380222279,1755616236238,-146.73491585,0.0001,2]
[380222283,1755616236312,-4.26508415,0.0001,2]
[380222285,1755616236322,-151.0,0.0001,2]
[380222287,1755616236333,-151.0,0.0001,2]
[380222288,1755616236342,-151.0,0.0001,2]
[380222289,1755616236352,-282.0,0.0001,2]
[380222290,1755616236361,-151.0,0.0001,2]
[380222291,1755616236371,-300.0,0.00010275,2]
[380222295,1755616236380,-150.0,0.00010275,2]
[380222297,1755616236390,-250.0,0.00010275,2]
[380222299,1755616236399,-159.2758272,0.00010349,2]
[380222302,1755616236409,-161.3047356,0.0001035,2]
[380222304,1755616236421,-115.6952644,0.0001035,2]
[380222306,1755616236431,-300.0,0.000104,3]
[380222308,1755616236440,-441.9165356,0.00010436,2]
[380222310,1755616236452,-205.7134644,0.00010436,2]
[380222312,1755616236462,-435.6933359,0.00010449,2]
[380222602,1755616240272,-526.42923862,0.00010449,2]
[380222607,1755616240308,-828.61,0.00010449,2]
[380222609,1755616240320,-253.8861676,0.00010449,2]
[380222637,1755616240583,-955.38125788,0.00010449,2]
[380222639,1755616240593,-311.1,0.00010449,2]
[380222641,1755616240602,-151.0,0.00010449,2]
[380222643,1755616240611,-160.0,0.00010449,2]
[380222645,1755616240620,-646.65982734,0.00010449,2]
[380222647,1755616240630,-248.71531821,0.00010449,2]
[380222649,1755616240639,-1134.8384229,0.00010449,2]
[380222657,1755616240707,-1140.8000002,0.00010449,2]
[380222660,1755616240719,-724.3615769,0.00010449,2]
[380222662,1755616240728,-3000.0,0.00010449,2]
[380222664,1755616240737,-672.77081546,0.00010449,2]
[380222667,1755616240763,-2327.22918454,0.00010449,2]
[380222669,1755616240772,-3000.0,0.00010449,2]
[380222671,1755616240781,-3000.0,0.00010449,2]
[380222673,1755616240791,-3000.0,0.00010449,2]
[380222675,1755616240800,-3000.0,0.00010449,2]
[380222677,1755616240809,-3000.0,0.00010449,2]
[380222679,1755616240819,-3000.0,0.00010449,2]
[380222681,1755616240828,-2264.38288249,0.00010449,2]
[380222683,1755616240837,-151.0,0.00010449,2]
[380222685,1755616240847,-8317.04024091,0.00010449,2]
[380222687,1755616240856,-151.0,0.00010449,2]
[380222689,1755616240865,-174.57,0.00010471,2]
[380222691,1755616240874,-2000.0,0.00010474,2]
[380222693,1755616240883,-300.0,0.00010474,2]
[380222695,1755616240893,-1830.49,0.00010475,2]
[380222697,1755616240902,-6497.77,0.00010475,2]
[380222699,1755616240911,-600.0,0.000105,3]
[380222701,1755616240920,-249.65245094,0.00010504,2]
[380222703,1755616240930,-5146.93176944,0.00010504,2]
[380222705,1755616240939,-7689.93347167,0.00010516,2]
[380222707,1755616240952,-473.57076138,0.00010516,2]
[380222974,1755616243368,-16746.05479772,0.00010516,2]
[380222978,1755616243380,-1772.44096923,0.00010516,2]
[380222981,1755616243389,-1541.31895825,0.0001055,2]
[380223020,1755616243577,-458.68104175,0.0001055,2]
[380223023,1755616243587,-900.0,0.000106,3]
[380223026,1755616243597,-2500.0,0.00010657,2]
[380223029,1755616243606,-300.0,0.00010657,2]
[380223032,1755616243615,-2.60192294,0.00010664,2]
[380223035,1755616243627,-1677.39807706,0.00010664,2]
[380223038,1755616243636,-181.59059794,0.00010697,2]
[380223042,1755616243648,-238.40940206,0.00010697,2]
[380223045,1755616243658,-1960.0,0.000107,2]
[380223049,1755616243668,-1200.0,0.000107,3]
[380223051,1755616243678,-255.0,0.00010746,2]
[380223055,1755616243697,-843.87140665,0.00010748,2]
[380223059,1755616243708,-160.0,0.00010762,2]
[380223063,1755616243717,-1500.0,0.000108,3]
[380223065,1755616243726,-275.84981467,0.00010865,2]
[380223070,1755616243736,-456.47683809,0.00010865,2]
[380223074,1755616243747,-212.02104404,0.00010889,2]
[380223077,1755616243756,-458.43483364,0.00010889,2]
[380223080,1755616243765,-1511.19205772,0.0001089,2]
[380223083,1755616243775,-200.43,0.0001089,2]
[380223086,1755616243785,-202.53,0.0001089,2]
[380223089,1755616243794,-203.5,0.0001089,2]
[380223092,1755616243804,-203.89,0.0001089,2]
[380223094,1755616243814,-200.27,0.0001089,2]
[380223098,1755616243824,-157.67269033,0.00010892,2]
[380223100,1755616243833,-201.18,0.000109,2]
[380223102,1755616243843,-202.44,0.000109,2]
[380223104,1755616243853,-211.3368741,0.000109,2]
[380223105,1755616243862,-5000.0,0.000109,2]
[380223107,1755616243872,-1000.0,0.000109,2]
[380223109,1755616243882,-300.0,0.000109,3]
[380223112,1755616243893,-150.16551865,0.000109,2]
[380223115,1755616243903,-1000.0,0.000109,2]
[380223118,1755616243912,-1000.0,0.000109,2]
[380223120,1755616243922,-1000.0,0.000109,2]
[380223122,1755616243932,-1000.0,0.000109,2]
[380223124,1755616243941,-792.62947798,0.000109,2]
[380223125,1755616243950,-792.6294778,0.000109,2]
[380223127,1755616243959,-792.6294778,0.000109,2]
[380223129,1755616243969,-3824.44698022,0.00010913,2]
[380223131,1755616243978,-3824.44698022,0.00010914,2]
[380223133,1755616243987,-3824.44698022,0.0001092,2]
[380223135,1755616243998,-3824.44698022,0.0001092,2]
[380223137,1755616244007,-2675.4312,0.0001092,2]
[380223140,1755616244017,-3824.44698022,0.00010926,2]
[380223142,1755616244027,-19582.04224297,0.0001094,2]
[380223144,1755616244037,-19582.04224297,0.00010942,2]
[380223146,1755616244046,-893.28265745,0.00010954,2]
[380223391,1755616246559,-453.0,0.00010954,2]
[380223393,1755616246571,-1141.14,0.00010954,2]
[380223429,1755616246804,-1145.0,0.00010812,2]
[380223431,1755616246814,-792.6294778,0.000109,2]
[380223433,1755616246824,-17094.61958552,0.00010954,2]
[380223435,1755616246834,-200.0,0.00010959,2]
[380223437,1755616246844,-150.0,0.00010959,2]
[380223439,1755616246853,-150.0,0.00010963,2]
[380223441,1755616246863,-150.0,0.00010963,2]
[380223443,1755616246872,-150.0,0.00010963,2]
[380223445,1755616246882,-500.0,0.00010963,2]
[380223447,1755616246891,-150.0,0.00010963,2]
[380223449,1755616246903,-150.0,0.00010963,2]
[380223451,1755616246916,-500.0,0.00010963,2]
[380223453,1755616246925,-150.0,0.00010963,2]
[380223455,1755616246935,-500.0,0.00010963,2]
[380223457,1755616246945,-150.0,0.00010963,2]
[380223459,1755616246954,-500.0,0.00010963,2]
[380223461,1755616246963,-150.0,0.00010963,2]
[380223463,1755616246973,-150.0,0.00010963,2]
[380223465,1755616246982,-150.0,0.00010963,2]
[380223467,1755616246992,-150.0,0.00010963,2]
[380223469,1755616247004,-150.0,0.00010963,2]
[380223471,1755616247013,-150.0,0.00010963,2]
[380223473,1755616247022,-500.0,0.00010963,2]